fUSD/lending_fUSD_20240104
["ID","MTS","AMOUNT","RATE_DAILY","PERIOD"]
[310152245,1704384645041,-1806.87,0.00032876,2]
[310152247,1704384645052,-500.0,0.00032876,2]
[310152249,1704384645061,-500.0,0.00032876,2]
[310152251,1704384645071,-500.0,0.00032876,2]
[310152253,1704384645080,-1248.14,0.00032876,2]
[310152255,1704384645089,-500.0,0.00032876,2]
[310152257,1704384645098,-7320.87,0.00032876,2]
[310152259,1704384645108,-500.0,0.00032876,2]
[310152261,1704384645117,-500.0,0.00032876,2]
[310152263,1704384645127,-596.18,0.00032876,2]
[310152265,1704384645136,-500.0,0.00032876,2]
[310152267,1704384645146,-500.0,0.00032876,2]
[310152269,1704384645156,-500.0,0.00032876,2]
[310152271,1704384645166,-1053.44,0.00032876,2]
[310152273,1704384645175,-1160.21,0.00032876,2]
[310152275,1704384645185,-712.06,0.00032876,2]
[310152277,1704384645194,-258.69409293,0.00032876,2]
[310152279,1704384645203,-583.13,0.00032876,2]
[310152281,1704384645212,-1547.86,0.00032876,2]
[310152283,1704384645221,-11509.81,0.00032876,2]
[310152285,1704384645230,-500.0,0.00032876,2]
[310152287,1704384645241,-4480.87,0.00032876,2]
[310152289,1704384645251,-500.0,0.00032876,2]
[310152291,1704384645260,-9191.26,0.00032876,2]
[310152293,1704384645269,-983.01,0.00032876,2]
[310152295,1704384645279,-500.0,0.00032876,2]
[310152297,1704384645288,-22757.31,0.00032876,2]
[310152299,1704384645298,-510.36,0.00032876,2]
[310152302,1704384645310,-1810.3,0.00032876,2]
[310152304,1704384645321,-500.0,0.00032876,2]
[310152305,1704384645330,-500.0,0.00032876,2]
[310152307,1704384645340,-500.0,0.00032876,2]
[310152309,1704384645349,-1146.84,0.00032876,2]
[310152311,1704384645358,-500.0,0.00032876,2]
[310152313,1704384645367,-10482.29,0.00032876,2]
[310152315,1704384645377,-682.62,0.00032876,2]
[310152317,1704384645386,-646.84,0.00032876,2]
[310152319,1704384645395,-500.0,0.00032876,2]
[310152321,1704384645404,-2236.54,0.00032876,2]
[310152323,1704384645415,-5241.12,0.00032876,2]
[310152325,1704384645424,-3000.04,0.00032876,2]
[310152327,1704384645434,-562.73,0.00032876,2]
[310152329,1704384645444,-1267.2,0.00032876,2]
[310152332,1704384645454,-500.0,0.00032876,2]
[310152334,1704384645464,-570.19,0.00032876,2]
[310152336,1704384645473,-500.0,0.00032876,2]
[310152338,1704384645483,-1044.59,0.00032876,2]
[310152339,1704384645492,-500.0,0.00032876,2]
[310152342,1704384645502,-1733.36,0.00032876,2]
[310152344,1704384645511,-500.0,0.00032876,2]
[310152346,1704384645521,-267.26277176,0.00032876,2]
[310152348,1704384645530,-506.99,0.00032876,2]
[310152349,1704384645539,-500.0,0.00032876,2]
[310152351,1704384645548,-2344.65,0.00032876,2]
[310152354,1704384645559,-500.0,0.00032876,2]
[310152356,1704384645569,-500.0,0.00032876,2]
[310152358,1704384645578,-500.0,0.00032876,2]
[310152360,1704384645588,-500.0,0.00032876,2]
[310152362,1704384645597,-1148.98,0.00032876,2]
[310152364,1704384645607,-500.0,0.00032876,2]
[310152366,1704384645616,-500.0,0.00032876,2]
[310152368,1704384645625,-3957.27,0.00032876,2]
[310152369,1704384645635,-666.95,0.00032876,2]
[310152371,1704384645645,-4906.37,0.00032876,2]
[310152374,1704384645655,-781.77,0.00032876,2]
[310152376,1704384645665,-3313.6,0.00032876,2]
[310152378,1704384645676,-500.0,0.00032876,2]
[310152379,1704384645685,-500.0,0.00032876,2]
[310152380,1704384645695,-500.0,0.00032876,2]
[310152381,1704384645704,-150.0,0.00032876,2]
[310152382,1704384645713,-1046.86,0.00032876,2]
[310152383,1704384645723,-521.63,0.00032876,2]
[310152384,1704384645733,-500.0,0.00032876,2]
[310152385,1704384645743,-3795.31,0.00032876,2]
[310152386,1704384645752,-500.0,0.00032876,2]
[310152387,1704384645762,-941.09,0.00032876,2]
[310152388,1704384645772,-744.5,0.00032876,2]
[310152391,1704384645781,-500.0,0.00032876,2]
[310152394,1704384645790,-40011.89,0.00032876,2]
[310152396,1704384645799,-680.9,0.00032876,2]
[310152398,1704384645810,-4440.8,0.00032876,2]
[310152400,1704384645819,-3124.54,0.00032876,2]
[310152402,1704384645830,-575.28,0.00032876,2]
[310152404,1704384645839,-575.77,0.00032876,2]
[310152406,1704384645849,-575.28,0.00032876,2]
[310152409,1704384645858,-500.0,0.00032876,2]
[310152413,1704384645869,-500.0,0.00032876,2]
[310152416,1704384645878,-529.49,0.00032876,2]
[310152418,1704384645887,-500.0,0.00032876,2]
[310152421,1704384645896,-500.0,0.00032876,2]
[310152423,1704384645906,-500.0,0.00032876,2]
[310152425,1704384645915,-500.0,0.00032876,2]
[310152427,1704384645925,-500.0,0.00032876,2]
[310152429,1704384645935,-500.0,0.00032876,2]
[310152431,1704384645944,-566.18,0.00032876,2]
[310152433,1704384645954,-500.0,0.00032876,2]
[310152435,1704384645963,-500.0,0.00032876,2]
[310152437,1704384645972,-1254.54,0.00032876,2]
[310152440,1704384645981,-500.0,0.00032876,2]
[310152443,1704384645990,-500.0,0.00032876,2]
[310152445,1704384646000,-11794.58,0.00032876,2]
[310152447,1704384646009,-500.0,0.00032876,2]
[310152449,1704384646019,-1416.07,0.00032876,2]
[310152451,1704384646028,-500.0,0.00032876,2]
[310152453,1704384646037,-500.0,0.00032876,2]
[310152455,1704384646046,-1935.18,0.00032876,2]
[310152457,1704384646057,-500.0,0.00032876,2]
[310152459,1704384646066,-500.0,0.00032876,2]
[310152461,1704384646075,-500.0,0.00032876,2]
[310152463,1704384646085,-500.0,0.00032876,2]
[310152465,1704384646094,-500.0,0.00032876,2]
[310152467,1704384646103,-2189.6,0.00032876,2]
[310152469,1704384646112,-500.0,0.00032876,2]
[310152471,1704384646121,-500.0,0.00032876,2]
[310152473,1704384646131,-746.5,0.00032876,2]
[310152475,1704384646140,-500.0,0.00032876,2]
[310152477,1704384646149,-500.0,0.00032876,2]
[310152479,1704384646158,-1093.1,0.00032876,2]
[310152481,1704384646167,-500.0,0.00032876,2]
[310152483,1704384646177,-500.0,0.00032876,2]
[310152485,1704384646186,-1922.89,0.00032876,2]
[310152487,1704384646196,-500.0,0.00032876,2]
[310152489,1704384646205,-500.0,0.00032876,2]
[310152491,1704384646215,-500.0,0.00032876,2]
[310152493,1704384646225,-500.0,0.00032876,2]
[310152495,1704384646234,-500.0,0.00032876,2]
[310152497,1704384646243,-500.0,0.00032876,2]
[310152500,1704384646252,-3029.2,0.00032876,2]
[310152502,1704384646274,-1065.96,0.00032876,2]
[310152504,1704384646284,-1007.95,0.00032876,2]
[310152506,1704384646294,-11096.0,0.00032876,2]
[310152509,1704384646308,-500.0,0.00032876,2]
[310152511,1704384646318,-747.54,0.00032876,2]
[310152513,1704384646327,-760.32,0.00032876,2]
[310152515,1704384646338,-12156.16,0.00032876,2]
[310152517,1704384646348,-300.57513226,0.00032876,2]
[310152519,1704384646359,-500.0,0.00032876,2]
[310152521,1704384646371,-500.0,0.00032876,2]
[310152523,1704384646380,-834.78,0.00032876,2]
[310152525,1704384646390,-1718.28,0.00032876,2]
[310152527,1704384646399,-611.3,0.00032876,2]
[310152529,1704384646409,-500.0,0.00032876,2]
[310152531,1704384646418,-697.33,0.00032876,2]
[310152533,1704384646430,-1413.99,0.00032876,2]
[310152535,1704384646442,-345.3769439,0.00032876,2]
[310152537,1704384646452,-697.67,0.00032876,2]
[310152539,1704384646462,-200.15964,0.00032876,2]
[310152541,1704384646471,-726.31,0.00032876,2]
[310152543,1704384646481,-1163.39,0.00032876,2]
[310152545,1704384646490,-1281.58,0.00032876,2]
[310152547,1704384646499,-520.32,0.00032876,2]
[310152549,1704384646509,-883.92,0.00032876,2]
[310152551,1704384646518,-500.0,0.00032876,2]
[310152553,1704384646528,-1053.47,0.00032876,2]
[310152555,1704384646537,-773.87,0.00032876,2]
[310152557,1704384646548,-500.0,0.00032876,2]
[310152559,1704384646559,-3994.67,0.00032876,2]
[310152561,1704384646569,-500.0,0.00032876,2]
[310152564,1704384646579,-891.04,0.00032876,2]
[310152566,1704384646588,-528.67,0.00032876,2]
[310152568,1704384646599,-902.18,0.00032876,2]
[310152570,1704384646608,-2976.44,0.00032876,2]
[310152572,1704384646618,-1129.74,0.00032876,2]
[310152574,1704384646627,-500.0,0.00032876,2]
[310152576,1704384646638,-8714.16,0.00032876,2]
[310152578,1704384646647,-500.0,0.00032876,2]
[310152580,1704384646658,-500.0,0.00032876,2]
[310152582,1704384646667,-709.87,0.00032876,2]
[310152584,1704384646676,-500.0,0.00032876,2]
[310152586,1704384646685,-573.28,0.00032876,2]
[310152588,1704384646696,-617.6,0.00032876,2]
[310152590,1704384646706,-415.36219038,0.00032876,2]
[310152592,1704384646715,-539.92,0.00032876,2]
[310152594,1704384646725,-2912.75,0.00032876,2]
[310152596,1704384646734,-500.0,0.00032876,2]
[310152598,1704384646744,-2375.82,0.00032876,2]
[310152601,1704384646754,-500.0,0.00032876,2]
[310152603,1704384646763,-500.0,0.00032876,2]
[310152605,1704384646773,-880.41,0.00032876,2]
[310152607,1704384646782,-712.84,0.00032876,2]
[310152609,1704384646792,-500.0,0.00032876,2]
[310152611,1704384646801,-990.05,0.00032876,2]
[310152613,1704384646811,-500.0,0.00032876,2]
[310152615,1704384646820,-500.0,0.00032876,2]
[310152617,1704384646829,-704.89,0.00032876,2]
[310152619,1704384646839,-1899.71,0.00032876,2]
[310152621,1704384646849,-1360.68,0.00032876,2]
[310152623,1704384646858,-1752.91,0.00032876,2]
[310152625,1704384646867,-846.97,0.00032876,2]
[310152627,1704384646877,-500.0,0.00032876,2]
[310152629,1704384646887,-500.0,0.00032876,2]
[310152631,1704384646896,-4094.39,0.00032876,2]
[310152633,1704384646906,-500.0,0.00032876,2]
[310152635,1704384646915,-1446.57,0.00032876,2]
[310152637,1704384646925,-500.0,0.00032876,2]
[310152639,1704384646934,-561.91,0.00032876,2]
[310152641,1704384646944,-1589.28,0.00032876,2]
[310152643,1704384646953,-500.0,0.00032876,2]
[310152645,1704384646963,-1546.98,0.00032876,2]
[310152647,1704384646972,-500.0,0.00032876,2]
[310152649,1704384646982,-500.0,0.00032876,2]
[310152651,1704384646991,-834.84,0.00032876,2]
[310152653,1704384647001,-1093.14,0.00032876,2]
[310152655,1704384647010,-564.13,0.00032876,2]
[310152657,1704384647020,-2073.94,0.00032876,2]
[310152659,1704384647030,-1945.09,0.00032876,2]
[310152661,1704384647041,-893.8,0.00032876,2]
[310152663,1704384647051,-900.7,0.00032876,2]
[310152665,1704384647061,-12496.39,0.00032876,2]
[310152667,1704384647071,-1450.8,0.00032876,2]
[310152669,1704384647080,-561.96,0.00032876,2]
[310152671,1704384647090,-514.0,0.00032876,2]
[310152674,1704384647100,-3417.84,0.00032876,2]
[310152676,1704384647111,-500.0,0.00032876,2]
[310152678,1704384647120,-500.0,0.00032876,2]
[310152680,1704384647130,-1205.79,0.00032876,2]
[310152682,1704384647140,-500.0,0.00032876,2]
[310152684,1704384647150,-500.0,0.00032876,2]
[310152686,1704384647160,-621.58,0.00032876,2]
[310152688,1704384647169,-881.27,0.00032876,2]
[310152690,1704384647179,-10382.29,0.00032876,2]
[310152692,1704384647188,-500.0,0.00032876,2]
[310152694,1704384647197,-2270.39,0.00032876,2]
[310152696,1704384647207,-500.0,0.00032876,2]
[310152698,1704384647216,-578.21,0.00032876,2]
[310152700,1704384647226,-987.12,0.00032876,2]
[310152702,1704384647236,-1396.67,0.00032876,2]
[310152704,1704384647245,-552.04,0.00032876,2]
[310152706,1704384647255,-656.43,0.00032876,2]
[310152708,1704384647265,-940.22,0.00032876,2]
[310152710,1704384647275,-500.0,0.00032876,2]
[310152712,1704384647284,-1079.52,0.00032876,2]
[310152714,1704384647295,-1439.1,0.00032876,2]
[310152716,1704384647304,-500.0,0.00032876,2]
[310152718,1704384647314,-500.0,0.00032876,2]
[310152720,1704384647324,-500.0,0.00032876,2]
[310152722,1704384647334,-1088.28,0.00032876,2]
[310152724,1704384647344,-500.0,0.00032876,2]
[310152726,1704384647354,-5839.49,0.00032876,2]
[310152728,1704384647364,-1535.77,0.00032876,2]
[310152730,1704384647374,-1904.93,0.00032876,2]
[310152732,1704384647384,-1236.96,0.00032876,2]
[310152734,1704384647394,-500.0,0.00032876,2]
[310152737,1704384647404,-500.0,0.00032876,2]
[310152739,1704384647414,-500.0,0.00032876,2]
[310152741,1704384647424,-3487.16,0.00032876,2]
[310152743,1704384647435,-4880.8,0.00032876,2]
[310152745,1704384647445,-500.0,0.00032876,2]
[310152747,1704384647455,-745.3,0.00032876,2]
[310152749,1704384647465,-568.13,0.00032876,2]
[310152751,1704384647474,-2004.58,0.00032876,2]
[310152753,1704384647483,-809.18,0.00032876,2]
[310152755,1704384647494,-397.64686617,0.00032876,2]
[310152757,1704384647503,-8885.11,0.00032876,2]
[310152759,1704384647513,-1186.38,0.00032876,2]
[310152761,1704384647523,-500.0,0.00032876,2]
[310152763,1704384647532,-500.0,0.00032876,2]
[310152765,1704384647542,-500.0,0.00032876,2]
[310152767,1704384647553,-500.0,0.00032876,7]
[310152769,1704384647563,-1779.45,0.00032876,2]
[310152771,1704384647573,-1353.33,0.00032876,2]
[310152773,1704384647583,-1121.93,0.00032876,2]
[310152775,1704384647593,-500.0,0.00032877,2]
[310152778,1704384647603,-395.16,0.00032877,15]
[310152779,1704384647613,-5732.84563439,0.000329,2]
[310152782,1704384647623,-20000.0,0.00033,2]
[310152784,1704384647632,-724.21712335,0.00033,4]
[310152786,1704384647642,-22951.43,0.00033038,2]
[310152787,1704384647651,-151.69064531,0.0003305,2]
[310152790,1704384647661,-151.41875704,0.0003305,2]
[310152791,1704384647672,-3542.96281941,0.0003305,2]
[310152794,1704384647682,-372.47969233,0.0003305,2]
[310152796,1704384647691,-578.35,0.00033081,2]
[310152798,1704384647700,-158.47,0.00033122,2]
[310152800,1704384647710,-242.86644669,0.00033129,7]
[310152802,1704384647720,-500.0,0.00033149,2]
[310152803,1704384647730,-500.0,0.00033149,2]
[310152804,1704384647740,-1667.8,0.00033149,2]
[310152805,1704384647749,-575.28,0.00033149,2]
[310152806,1704384647759,-575.28,0.00033149,2]
[310152807,1704384647770,-171.84,0.00033149,2]
[310152808,1704384647780,-423931.3413994,0.0003315,3]
[310152892,1704384648592,-752.92460689,0.0003315,3]
[310152903,1704384648693,-707.09670802,0.0003315,3]
[310152906,1704384648704,-9336.87242611,0.0003315,3]
[310152908,1704384648716,-487.0215654,0.0003315,3]
[310152910,1704384648727,-1715.20652882,0.0003315,3]
[310152913,1704384648747,-963.89748236,0.0003315,3]
[310152915,1704384648759,-1278.1509294,0.0003315,3]
[310152918,1704384648770,-793.61523538,0.0003315,3]
[310152920,1704384648781,-1526.29521104,0.0003315,3]
[310152922,1704384648793,-2260.0,0.0003315,3]
[310153005,1704384649592,-546.24066519,0.00028809,2]
[310153007,1704384649602,-750.0,0.00029744,2]
[310153009,1704384649612,-500.0,0.00032876,2]
[310153011,1704384649622,-283.32792403,0.000329,2]
[310153012,1704384649631,-4606.49664597,0.0003315,3]
[310153013,1704384649643,-1589.2456044,0.0003315,3]
[310153014,1704384649721,-833.30339899,0.0003315,3]
[310153015,1704384649732,-454.54705368,0.0003315,3]
[310153016,1704384649744,-2361.78429854,0.0003315,3]
[310153023,1704384649797,-800.41463293,0.0003315,3]
[310153025,1704384649810,-694.66894981,0.0003315,3]
[310153078,1704384650301,-10124.91982194,0.0003315,3]
[310153120,1704384650699,-37913.36720526,0.0003315,3]
[310153122,1704384650708,-500.0,0.0003315,2]
[310153124,1704384650718,-500.0,0.0003315,2]
[310153126,1704384650727,-500.0,0.0003315,2]
[310153128,1704384650736,-500.0,0.0003315,2]
[310153130,1704384650746,-500.0,0.0003315,2]
[310153132,1704384650755,-500.0,0.0003315,2]
[310153134,1704384650764,-500.0,0.0003315,2]
[310153136,1704384650773,-500.0,0.0003315,2]
[310153138,1704384650782,-768.69,0.0003315,2]
[310153140,1704384650792,-589.83,0.0003315,2]
[310153142,1704384650802,-603.66,0.0003315,2]
[310153144,1704384650812,-1000.0,0.0003315,2]
[310153146,1704384650822,-500.0,0.0003315,2]
[310153148,1704384650831,-500.0,0.0003315,2]
[310153150,1704384650841,-599.73,0.0003315,2]
[310153152,1704384650850,-609.87,0.0003315,2]
[310153154,1704384650860,-500.0,0.0003315,2]
[310153156,1704384650869,-500.0,0.0003315,2]
[310153158,1704384650878,-500.0,0.0003315,2]
[310153160,1704384650888,-500.0,0.0003315,2]
[310153162,1704384650898,-500.0,0.0003315,2]
[310153164,1704384650907,-500.0,0.0003315,2]
[310153165,1704384650916,-500.0,0.0003315,2]
[310153167,1704384650926,-500.0,0.0003315,2]
[310153169,1704384650935,-607.88,0.0003315,2]
[310153171,1704384650944,-500.0,0.0003315,2]
[310153173,1704384650953,-500.0,0.0003315,2]
[310153175,1704384650962,-500.0,0.0003315,2]
[310153178,1704384650972,-500.0,0.0003315,2]
[310153179,1704384650981,-500.0,0.0003315,2]
[310153182,1704384650991,-228.16556722,0.0003315,2]
[310153184,1704384651001,-500.0,0.0003315,2]
[310153186,1704384651011,-500.0,0.0003315,2]
[310153187,1704384651024,-500.0,0.0003315,2]
[310153189,1704384651033,-500.0,0.0003315,2]
[310153191,1704384651042,-500.0,0.0003315,2]
[310153193,1704384651051,-500.0,0.0003315,2]
[310153196,1704384651062,-500.0,0.0003315,2]
[310153198,1704384651071,-500.0,0.0003315,2]
[310153199,1704384651080,-500.0,0.0003315,2]
[310153202,1704384651089,-500.0,0.0003315,2]
[310153204,1704384651098,-718.24,0.0003315,2]
[310153205,1704384651107,-690.39,0.0003315,2]
[310153208,1704384651117,-500.0,0.0003315,2]
[310153210,1704384651127,-500.0,0.0003315,2]
[310153212,1704384651136,-712.49,0.0003315,2]
[310153214,1704384651145,-604.15,0.0003315,2]
[310153216,1704384651154,-500.0,0.0003315,2]
[310153218,1704384651163,-500.0,0.0003315,2]
[310153220,1704384651172,-500.0,0.0003315,2]
[310153221,1704384651181,-500.0,0.0003315,2]
[310153224,1704384651191,-500.0,0.0003315,2]
[310153225,1704384651200,-582.68,0.0003315,2]
[310153227,1704384651210,-500.0,0.0003315,2]
[310153229,1704384651219,-500.0,0.0003315,2]
[310153231,1704384651229,-500.0,0.0003315,2]
[310153234,1704384651238,-500.0,0.0003315,2]
[310153236,1704384651248,-500.0,0.0003315,2]
[310153238,1704384651258,-1117.06,0.0003315,2]
[310153240,1704384651267,-500.0,0.0003315,2]
[310153242,1704384651276,-500.0,0.0003315,2]
[310153244,1704384651286,-500.0,0.0003315,2]
[310153246,1704384651296,-500.0,0.0003315,2]
[310153248,1704384651305,-500.0,0.0003315,2]
[310153250,1704384651316,-500.0,0.0003315,2]
[310153252,1704384651325,-390.46340749,0.0003315,2]
[310153254,1704384651334,-585.66,0.0003315,2]
[310153256,1704384651344,-500.0,0.0003315,2]
[310153258,1704384651353,-500.0,0.0003315,2]
[310153260,1704384651362,-789.66,0.0003315,2]
[310153262,1704384651371,-500.0,0.0003315,2]
[310153264,1704384651380,-500.0,0.0003315,2]
[310153266,1704384651389,-500.0,0.0003315,2]
[310153268,1704384651398,-500.0,0.0003315,2]
[310153270,1704384651408,-500.0,0.0003315,2]
[310153271,1704384651417,-500.0,0.0003315,2]
[310153272,1704384651426,-500.0,0.0003315,2]
[310153273,1704384651437,-500.0,0.0003315,2]
[310153274,1704384651447,-500.0,0.0003315,2]
[310153275,1704384651456,-500.0,0.0003315,2]
[310153276,1704384651466,-500.0,0.0003315,2]
[310153277,1704384651476,-500.0,0.0003315,2]
[310153278,1704384651486,-500.0,0.0003315,2]
[310153280,1704384651496,-500.0,0.0003315,2]
[310153282,1704384651506,-500.0,0.0003315,2]
[310153284,1704384651515,-500.0,0.0003315,2]
[310153286,1704384651525,-867.28,0.0003315,2]
[310153288,1704384651536,-764.44,0.0003315,2]
[310153290,1704384651545,-883.27,0.0003315,2]
[310153292,1704384651555,-500.0,0.0003315,2]
[310153294,1704384651567,-500.0,0.0003315,2]
[310153296,1704384651577,-500.0,0.0003315,2]
[310153298,1704384651586,-287.59199883,0.0003315,2]
[310153300,1704384651596,-842.43,0.0003315,2]
[310153302,1704384651605,-500.0,0.0003315,2]
[310153303,1704384651615,-682.97,0.0003315,2]
[310153305,1704384651625,-500.0,0.0003315,2]
[310153307,1704384651634,-500.0,0.0003315,2]
[310153309,1704384651643,-500.0,0.0003315,2]
[310153311,1704384651652,-500.0,0.0003315,2]
[310153313,1704384651662,-500.0,0.0003315,2]
[310153315,1704384651671,-500.0,0.0003315,2]
[310153317,1704384651681,-211.66406343,0.0003315,2]
[310153319,1704384651690,-670.92,0.0003315,2]
[310153321,1704384651699,-500.0,0.0003315,2]
[310153324,1704384651709,-500.0,0.0003315,2]
[310153325,1704384651720,-1005.13,0.0003315,2]
[310153328,1704384651729,-500.0,0.0003315,2]
[310153330,1704384651739,-500.0,0.0003315,2]
[310153332,1704384651749,-1406.92,0.0003315,2]
[310153333,1704384651758,-725.93,0.0003315,2]
[310153336,1704384651767,-500.0,0.0003315,2]
[310153337,1704384651776,-500.0,0.0003315,2]
[310153340,1704384651786,-699.62,0.0003315,2]
[310153342,1704384651795,-1117.49,0.0003315,2]
[310153344,1704384651805,-674.55,0.0003315,2]
[310153346,1704384651817,-500.0,0.0003315,2]
[310153347,1704384651826,-677.2,0.0003315,2]
[310153349,1704384651836,-500.0,0.0003315,2]
[310153351,1704384651845,-500.0,0.0003315,2]
[310153353,1704384651855,-500.0,0.0003315,2]
[310153355,1704384651864,-500.0,0.0003315,2]
[310153357,1704384651873,-500.0,0.0003315,2]
[310153359,1704384651882,-782.63,0.0003315,2]
[310153361,1704384651891,-500.0,0.0003315,2]
[310153363,1704384651900,-500.0,0.0003315,2]
[310153365,1704384651909,-510.31,0.0003315,2]
[310153367,1704384651919,-830.54,0.0003315,2]
[310153369,1704384651928,-901.96,0.0003315,2]
[310153371,1704384651937,-500.0,0.0003315,2]
[310153373,1704384651947,-662.32,0.0003315,2]
[310153375,1704384651956,-500.0,0.0003315,2]
[310153377,1704384651965,-500.0,0.0003315,2]
[310153379,1704384651975,-500.0,0.0003315,2]
[310153381,1704384651985,-1824.67,0.0003315,2]
[310153383,1704384651994,-500.0,0.0003315,2]
[310153385,1704384652003,-931.95,0.0003315,2]
[310153387,1704384652013,-500.0,0.0003315,2]
[310153389,1704384652022,-500.0,0.0003315,2]
[310153391,1704384652031,-500.0,0.0003315,2]
[310153393,1704384652040,-500.0,0.0003315,2]
[310153395,1704384652050,-500.0,0.0003315,2]
[310153397,1704384652062,-654.3,0.0003315,2]
[310153399,1704384652071,-500.0,0.0003315,2]
[310153401,1704384652081,-500.0,0.0003315,2]
[310153403,1704384652091,-500.0,0.0003315,2]
[310153406,1704384652101,-500.0,0.0003315,2]
[310153408,1704384652110,-1130.23,0.0003315,2]
[310153409,1704384652119,-500.0,0.0003315,2]
[310153411,1704384652129,-500.0,0.0003315,2]
[310153413,1704384652139,-500.0,0.0003315,2]
[310153416,1704384652149,-559.43,0.0003315,2]
[310153418,1704384652158,-500.0,0.0003315,2]
[310153420,1704384652167,-500.0,0.0003315,2]
[310153421,1704384652177,-1026.82,0.0003315,2]
[310153423,1704384652187,-500.0,0.0003315,2]
[310153425,1704384652196,-500.0,0.0003315,2]
[310153427,1704384652205,-500.0,0.0003315,2]
[310153430,1704384652215,-586.09,0.0003315,2]
[310153432,1704384652226,-574.52,0.0003315,2]
[310153434,1704384652235,-622.68,0.0003315,2]
[310153436,1704384652245,-593.19,0.0003315,2]
[310153438,1704384652255,-633.75,0.0003315,2]
[310153440,1704384652264,-500.0,0.0003315,2]
[310153442,1704384652273,-731.33,0.0003315,2]
[310153444,1704384652283,-756.82,0.0003315,2]
[310153446,1704384652293,-500.0,0.0003315,2]
[310153448,1704384652303,-500.0,0.0003315,2]
[310153449,1704384652313,-500.0,0.0003315,2]
[310153451,1704384652322,-500.0,0.0003315,2]
[310153454,1704384652332,-500.0,0.0003315,2]
[310153456,1704384652343,-500.0,0.0003315,2]
[310153457,1704384652356,-812.26,0.0003315,2]
[310153459,1704384652366,-642.48,0.0003315,2]
[310153461,1704384652375,-500.0,0.0003315,2]
[310153463,1704384652384,-500.0,0.0003315,2]
[310153466,1704384652395,-995.06,0.0003315,2]
[310153467,1704384652405,-647.0,0.0003315,2]
[310153469,1704384652414,-1428.61,0.0003315,2]
[310153471,1704384652424,-500.0,0.0003315,2]
[310153473,1704384652434,-159.43345874,0.0003315,2]
[310153475,1704384652444,-737.41,0.0003315,2]
[310153477,1704384652454,-500.0,0.0003315,2]
[310153480,1704384652464,-500.0,0.0003315,2]
[310153481,1704384652473,-719.19,0.0003315,2]
[310153484,1704384652483,-500.0,0.0003315,2]
[310153485,1704384652493,-966.27,0.0003315,2]
[310153487,1704384652502,-355.60290728,0.0003315,2]
[310153489,1704384652511,-500.0,0.0003315,2]
[310153492,1704384652522,-500.0,0.0003315,2]
[310153493,1704384652531,-683.25,0.0003315,2]
[310153496,1704384652541,-500.0,0.0003315,2]
[310153497,1704384652550,-708.7,0.0003315,2]
[310153499,1704384652559,-500.0,0.0003315,2]
[310153501,1704384652568,-1313.57,0.0003315,2]